bitfinex-derivatives/quotes_BTCF0:USTF0_20240913
["timestamp","ask_amount","ask_price","bid_price","bid_amount"]
[1726248928853,0.15029397,59682.0,59681.0,0.251271]
[1726248929042,0.0039,59684.0,59681.0,0.251271]
[1726248929043,0.15029397,59684.0,59683.0,0.16751]
[1726248929243,0.1670462,59688.0,59683.0,0.444555]
[1726248929451,0.1670462,59688.0,59687.0,0.083749]
[1726248929665,0.19,59688.0,59686.0,0.08375]
[1726248929854,0.106,59687.0,59683.0,0.3608]
[1726248930044,0.16691897,59685.0,59684.0,0.083753]
[1726248930245,0.106,59687.0,59686.0,0.08375]
[1726248931451,0.296,59687.0,59683.0,0.37087213]
[1726248931657,0.18355598,59684.0,59677.0,0.087662]
[1726248931857,0.083762,59678.0,59674.0,0.083767]
[1726248932253,1.463756,59682.0,59674.0,0.01011674]
[1726248932556,0.083759,59681.0,59678.0,0.083761]
[1726248933146,0.083753,59684.0,59679.0,0.3608]
[1726248933463,0.607,59686.0,59684.0,0.083752]
[1726248933464,0.0562,59686.0,59684.0,0.083752]
[1726248933666,0.0562,59686.0,59683.0,0.083754]
[1726248933850,0.0562,59686.0,59684.0,0.5508]
[1726248934047,0.0562,59686.0,59685.0,0.083752]
[1726248935952,0.0562,59686.0,59685.0,0.444552]
[1726248936457,0.0562,59686.0,59685.0,0.083752]
[1726248938872,0.0562,59686.0,59685.0,0.09388196]
[1726248939065,0.09720965,59686.0,59685.0,0.09388196]
[1726248939566,0.09240853,59686.0,59685.0,0.09388196]
[1726248939751,0.09165402,59686.0,59685.0,0.09388196]
[1726248941055,0.16698427,59686.0,59685.0,0.09388196]
[1726248941261,0.21838315,59686.0,59685.0,0.09388196]
[1726248941467,0.05139888,59686.0,59685.0,0.09388196]
[1726248941657,0.1669891,59686.0,59685.0,0.09388196]
[1726248941863,0.05139888,59686.0,59685.0,0.09388196]
[1726248943060,0.05139888,59686.0,59685.0,0.45468196]
[1726248944669,0.0536,59687.0,59686.0,0.08375]
[1726248944866,0.10500128,59687.0,59686.0,0.08375]
[1726248945872,0.0536,59687.0,59686.0,0.1675]
[1726248946175,0.10499759,59687.0,59686.0,0.08375]
[1726248946874,0.25635104,59687.0,59686.0,0.08475]
[1726248947263,0.0546,59687.0,59686.0,0.08475]
[1726248948673,0.138349,59687.0,59686.0,0.08475]
[1726248948873,0.138349,59687.0,59686.0,0.001]
[1726248949074,0.138349,59687.0,59686.0,0.08475]
[1726248949373,0.0546,59687.0,59686.0,0.08475]
[1726248949568,0.138349,59687.0,59686.0,0.001]
[1726248949764,0.0546,59687.0,59686.0,0.08475]
[1726248950174,0.138349,59687.0,59686.0,0.08475]
[1726248953092,0.0546,59687.0,59686.0,0.08475]
[1726248954276,0.0546,59687.0,59686.0,0.61305]
[1726248954277,0.001,59687.0,59686.0,0.61305]
[1726248954781,0.001,59687.0,59686.0,1.71569]
[1726248954978,0.001,59687.0,59686.0,1.78181807]
[1726248955973,0.001,59687.0,59686.0,1.71569]
[1726248956369,0.0039,59692.0,59691.0,0.167486]
[1726248956571,0.0039,59697.0,59696.0,0.083736]
[1726248956770,0.35665118,59700.0,59699.0,0.083732]
[1726248958781,0.35665118,59700.0,59699.0,0.084732]
[1726248959179,0.35665118,59700.0,59699.0,0.09475135]
[1726248959486,0.35665118,59700.0,59699.0,0.09575135]
[1726248959978,0.35665118,59700.0,59699.0,0.01201935]
[1726248960279,0.35665118,59700.0,59699.0,0.09575135]
[1726248962386,0.50908574,59700.0,59699.0,0.09575135]
[1726248963681,0.72626726,59700.0,59699.0,0.09575135]
[1726248964982,0.50908574,59700.0,59699.0,0.09575135]
[1726248965781,0.50908574,59700.0,59699.0,0.0068491]
[1726248965993,0.50908574,59700.0,59698.0,0.3608]
[1726248966287,0.15243456,59699.0,59698.0,0.444533]
[1726248967388,0.15243456,59699.0,59698.0,0.445533]
[1726248967694,0.15243456,59699.0,59698.0,0.45583073]
[1726248968492,0.15243456,59699.0,59698.0,0.45683073]
[1726248968895,0.15343456,59699.0,59698.0,0.45683073]
[1726248969289,0.001,59699.0,59698.0,0.45683073]
[1726248970689,0.001,59699.0,59698.0,0.54056373]
[1726248970992,0.001,59699.0,59698.0,0.62429673]
[1726248971495,0.001,59699.0,59698.0,1.72681673]
[1726248972588,0.001,59699.0,59698.0,1.12681673]
[1726248972787,0.001,59699.0,59698.0,1.72681673]
[1726248973093,0.35665118,59700.0,59699.0,0.251196]
[1726248973296,1.00104001,59710.0,59699.0,0.69252]
[1726248973598,1.00104001,59710.0,59698.0,1.05683073]
[1726248973599,1.00104001,59710.0,59709.0,0.167436]
[1726248973793,1.00104001,59710.0,59709.0,0.444518]
[1726248973997,1.0,59710.0,59709.0,0.946958]
[1726248974195,1.0,59710.0,59709.0,1.630676]
[1726248974399,1.0,59710.0,59709.0,0.946958]
[1726248975494,1.0,59710.0,59709.0,0.947958]
[1726248975785,1.0,59710.0,59709.0,0.445518]
[1726248976193,1.0,59710.0,59709.0,0.3618]
[1726248976398,1.0,59710.0,59709.0,0.37202928]
[1726248977197,1.19513142,59710.0,59709.0,0.001]
[1726248977401,1.55593142,59710.0,59709.0,0.001]
[1726248977601,1.19513142,59710.0,59709.0,0.001]
[1726248977808,1.11141442,59710.0,59709.0,0.001]
[1726248978188,1.19513142,59710.0,59709.0,0.001]
[1726248979799,0.083725,59704.0,59702.0,0.0039]
[1726248980102,0.16177875,59703.0,59697.0,0.083734]
[1726248980308,0.05137875,59702.0,59701.0,0.3608]
[1726248980493,0.05137875,59702.0,59701.0,0.444529]
[1726248981906,0.05137875,59702.0,59701.0,0.447529]
[1726248982700,0.05137875,59702.0,59701.0,0.446529]
[1726248982907,0.05137875,59702.0,59701.0,0.447529]
[1726248983496,0.05137875,59702.0,59701.0,0.445529]
[1726248983803,0.1104,59703.0,59702.0,0.083728]
[1726248984107,0.16178393,59703.0,59702.0,0.083728]
[1726248984304,0.1104,59703.0,59702.0,0.29431344]
[1726248984616,0.1104,59703.0,59702.0,0.29431423]
[1726248985197,0.1104,59703.0,59702.0,0.29531423]
[1726248985504,0.1104,59703.0,59702.0,0.21230204]
[1726248985700,0.0039,59707.0,59705.0,0.083723]
[1726248985899,1.14658462,59710.0,59706.0,0.3608]
[1726248986201,0.083718,59709.0,59707.0,0.06618476]
[1726248986406,1.06182661,59710.0,59708.0,0.083719]
[1726248986407,1.06298662,59710.0,59708.0,0.083719]
[1726248986591,1.06182661,59710.0,59708.0,0.083719]
[1726248986794,1.06182661,59710.0,59708.0,0.06618476]
[1726248987110,1.0,59710.0,59709.0,0.273718]
[1726248987608,1.0,59710.0,59709.0,0.06617329]
[1726248987609,1.001,59710.0,59709.0,0.06617329]
[1726248988006,1.001,59710.0,59708.0,0.001]
[1726248988309,1.274717,59710.0,59709.0,0.06617176]
[1726248988510,1.274717,59710.0,59709.0,0.06717176]
[1726248989006,1.274717,59710.0,59709.0,0.06617176]
[1726248989212,0.083718,59709.0,59708.0,0.06717176]
[1726248990812,0.083718,59709.0,59708.0,0.15089076]
[1726248991103,0.083718,59709.0,59708.0,0.14989076]
[1726248991908,0.084718,59709.0,59708.0,0.06617176]
[1726248992414,0.601,59709.0,59701.0,0.06617176]
[1726248992600,0.601,59709.0,59698.0,0.083733]
[1726248992601,0.083729,59701.0,59698.0,0.083733]
[1726248992803,0.083732,59699.0,59698.0,0.083733]
[1726248993006,0.083732,59699.0,59696.0,0.06617176]
[1726248993007,0.0527,59700.0,59699.0,0.083732]
[1726248993516,0.136431,59700.0,59699.0,0.083732]
[1726248994404,0.0527,59700.0,59696.0,0.07650817]
[1726248994599,0.0527,59700.0,59699.0,0.006]
[1726248994802,0.136431,59700.0,59699.0,0.006]
[1726248995207,0.220162,59700.0,59699.0,0.006]
[1726248996303,0.083735,59697.0,59696.0,0.016]
[1726248996911,0.273735,59697.0,59696.0,0.016]
[1726248997111,0.273735,59697.0,59696.0,0.007]
[1726248997307,0.083735,59697.0,59696.0,0.090736]
[1726248997507,0.0527,59700.0,59696.0,0.444536]
[1726248997717,0.136431,59700.0,59699.0,0.083732]
[1726248998517,0.0527,59700.0,59699.0,0.083732]
[1726248999628,0.0527,59700.0,59696.0,0.3658]
[1726249000115,0.083732,59699.0,59698.0,0.083733]
[1726249000710,0.0527,59700.0,59699.0,0.083732]
[1726249001014,0.083735,59697.0,59696.0,0.003]
[1726249001213,0.35747,59697.0,59696.0,0.008]
[1726249001411,0.35747,59697.0,59696.0,0.005]
[1726249002310,0.273735,59697.0,59696.0,0.005]
[1726249002518,0.083735,59697.0,59696.0,0.086736]
[1726249002813,0.0527,59700.0,59699.0,0.083732]
[1726249004206,0.0527,59700.0,59699.0,0.084732]
[1726249005202,0.0527,59700.0,59699.0,0.086732]
[1726249005614,0.0527,59700.0,59699.0,0.002]
[1726249005803,0.0527,59700.0,59699.0,0.005]
[1726249007005,0.0527,59700.0,59699.0,0.01495548]
[1726249007210,0.0527,59700.0,59699.0,0.088732]
[1726249007415,0.136431,59700.0,59699.0,0.003]
[1726249007619,0.136431,59700.0,59699.0,0.005]
[1726249007912,0.0527,59700.0,59699.0,0.005]
[1726249008308,0.0527,59700.0,59699.0,0.088732]
[1726249008506,0.0527,59700.0,59699.0,0.086732]
[1726249008810,0.0527,59700.0,59699.0,0.085732]
[1726249009006,0.0527,59700.0,59699.0,0.088732]
[1726249010317,0.0527,59700.0,59699.0,0.090732]
[1726249010907,0.0527,59700.0,59699.0,0.093732]
[1726249011308,0.0527,59700.0,59699.0,0.091732]
[1726249013409,0.0527,59700.0,59699.0,0.086732]
[1726249013609,0.0527,59700.0,59699.0,0.091732]
[1726249014413,0.05139089,59700.0,59699.0,0.091732]
[1726249014629,0.16700416,59700.0,59699.0,0.091732]
[1726249015216,0.16700416,59700.0,59699.0,0.088732]
[1726249015415,0.16700416,59700.0,59699.0,0.091732]
[1726249015921,0.26743258,59702.0,59700.0,0.083729]
[1726249016510,0.18370458,59701.0,59700.0,0.083729]
[1726249017815,0.083728,59702.0,59700.0,0.085729]
[1726249018115,0.083728,59702.0,59701.0,0.444529]
[1726249019016,0.11154972,59704.0,59703.0,0.083726]
[1726249019212,0.0515,59704.0,59703.0,0.083726]
[1726249019808,0.11154972,59704.0,59703.0,0.083726]
[1726249020224,0.135225,59704.0,59703.0,0.083726]
[1726249020519,0.19527472,59704.0,59703.0,0.083726]
[1726249020714,0.136225,59704.0,59703.0,0.083726]
[1726249022514,0.136225,59704.0,59703.0,0.083726]
[1726249022714,0.135225,59704.0,59703.0,0.16680166]
[1726249023020,0.136225,59704.0,59703.0,0.29438736]
[1726249023213,0.136225,59704.0,59703.0,0.2113117]
[1726249023416,0.136225,59704.0,59703.0,0.29438762]
[1726249023615,0.09433826,59704.0,59703.0,0.2113117]
[1726249025620,0.09433826,59704.0,59703.0,0.29438765]
[1726249025923,0.09433826,59704.0,59703.0,0.16680195]
[1726249026517,0.167452,59703.0,59702.0,0.08307595]
[1726249026718,0.251178,59703.0,59696.0,0.0996908]
[1726249026929,0.3608,59699.0,59697.0,0.1275892]
[1726249027225,0.3608,59699.0,59695.0,0.0996908]
[1726249027226,0.083735,59697.0,59692.0,0.083742]
[1726249027421,0.0524,59696.0,59693.0,0.12760425]
[1726249027627,0.083738,59695.0,59694.0,0.12760425]
[1726249027830,0.329238,59695.0,59694.0,0.48840425]
[1726249028519,0.329238,59695.0,59694.0,0.57214325]
[1726249029424,0.20795461,59695.0,59694.0,0.444539]
[1726249029928,0.23163735,59695.0,59694.0,0.444539]
[1726249030129,0.23163735,59695.0,59694.0,0.451539]
[1726249030325,0.33789935,59695.0,59694.0,0.460539]
[1726249030528,0.42163735,59695.0,59694.0,0.016]
[1726249031034,0.42163735,59695.0,59694.0,0.009]
[1726249031035,0.48169261,59695.0,59694.0,0.009]
[1726249031236,0.48169261,59695.0,59694.0,0.011]
[1726249031538,0.48169418,59695.0,59694.0,0.011]
[1726249031829,0.56543218,59695.0,59694.0,0.011]
[1726249032037,0.083746,59689.0,59688.0,0.0039]
[1726249032231,0.36614692,59689.0,59683.0,0.408754]
[1726249032435,0.19,59684.0,59683.0,0.083754]
[1726249032632,0.28240092,59684.0,59683.0,0.083754]
[1726249032930,0.08376,59680.0,59679.0,0.083759]
[1726249033145,0.09240092,59680.0,59679.0,0.16752]
[1726249033836,0.09240092,59680.0,59679.0,0.08376]
[1726249034629,0.09240092,59680.0,59679.0,0.09076]
[1726249034941,0.09240092,59680.0,59679.0,0.09276]
[1726249035627,0.09240092,59680.0,59679.0,0.09076]
[1726249035926,0.09340092,59680.0,59679.0,0.012]
[1726249036139,0.28342134,59680.0,59679.0,0.012]
[1726249036534,0.28242134,59680.0,59679.0,0.008]
[1726249036834,0.28242134,59680.0,59679.0,0.005]
[1726249037534,1.376439,59680.0,59679.0,0.06945135]
[1726249037725,0.50268,59679.0,59674.0,0.04977072]
[1726249037928,0.083767,59674.0,59673.0,0.04977072]
[1726249038127,0.083767,59674.0,59672.0,0.04978369]
[1726249038333,0.19,59673.0,59670.0,0.04978369]
[1726249038537,0.3608,59675.0,59662.0,0.0039]
[1726249038538,0.083773,59670.0,59662.0,0.0039]
[1726249038835,0.083773,59670.0,59658.0,0.68664]
[1726249038836,0.3608,59668.0,59664.0,0.04975027]
[1726249039025,0.083781,59664.0,59661.0,0.083785]
[1726249039231,0.19,59665.0,59664.0,0.083781]
[1726249039427,0.19,59665.0,59661.0,0.04977199]
[1726249039646,0.19,59662.0,59659.0,0.04977199]
[1726249039838,0.19,59662.0,59661.0,0.083785]
[1726249040834,0.19,59662.0,59658.0,0.04977199]
[1726249041041,0.19,59662.0,59661.0,0.011]
[1726249041438,0.19,59662.0,59661.0,0.094785]
[1726249041741,0.19,59662.0,59661.0,0.088785]
[1726249041942,0.191,59662.0,59661.0,0.094785]
[1726249042243,0.191,59662.0,59661.0,0.011]
[1726249044534,0.274784,59662.0,59661.0,0.011]
[1726249048250,0.274784,59662.0,59661.0,0.094785]
[1726249048934,0.635584,59662.0,59661.0,0.011]
[1726249049135,1.822208,59662.0,59661.0,0.011]
[1726249049336,0.083795,59654.0,59653.0,0.0039]
[1726249049546,0.167596,59652.0,59651.0,0.325]
[1726249049741,0.167596,59652.0,59647.0,0.083804]
[1726249049742,0.079904,59648.0,59647.0,0.083804]
[1726249050054,0.269904,59648.0,59647.0,0.083804]
[1726249051346,0.083811,59644.0,59643.0,0.08381]
[1726249051545,0.273811,59644.0,59643.0,0.08381]
[1726249051750,0.083815,59640.0,59634.0,0.04977199]
[1726249051944,0.19,59637.0,59636.0,0.083821]
[1726249052136,0.1312992,59637.0,59636.0,0.083821]
[1726249052339,0.19,59641.0,59640.0,0.083815]
[1726249053844,0.273813,59641.0,59640.0,0.004]
[1726249055047,0.274813,59641.0,59640.0,0.01]
[1726249056255,1.461626,59641.0,59640.0,0.01]
[1726249056450,0.08382,59637.0,59629.0,0.08383]
[1726249056648,0.19,59630.0,59629.0,0.08383]
[1726249057443,0.19,59630.0,59629.0,0.09783]
[1726249057658,0.19,59630.0,59629.0,0.11083]
[1726249058246,0.19,59630.0,59629.0,0.09783]
[1726249058446,0.191,59630.0,59629.0,0.10883]
[1726249059341,0.192,59630.0,59629.0,0.10383]
[1726249059544,0.14167931,59630.0,59629.0,0.10383]
[1726249060953,0.002,59630.0,59629.0,0.10383]
[1726249061549,0.192,59630.0,59629.0,0.10383]
[1726249061853,0.192,59630.0,59629.0,0.11410155]
[1726249062042,0.002,59630.0,59629.0,0.11410155]
[1726249065354,0.002,59630.0,59629.0,0.19685931]
[1726249065556,0.192,59630.0,59629.0,0.02]
[1726249065755,0.275829,59630.0,59629.0,0.02]
[1726249065956,0.192,59630.0,59629.0,0.02]
[1726249066461,0.192,59630.0,59629.0,0.10383]
[1726249066643,0.002,59630.0,59629.0,0.10383]
[1726249067856,0.002,59630.0,59629.0,0.46149]
[1726249068053,0.002,59630.0,59629.0,0.10383]
[1726249068651,0.002,59630.0,59629.0,0.18766]
[1726249069052,0.002,59630.0,59629.0,0.10383]
[1726249072359,0.085829,59630.0,59629.0,0.02]
[1726249072667,0.002,59630.0,59629.0,0.10383]
[1726249074062,0.002,59630.0,59629.0,0.46463]
[1726249074263,0.002,59630.0,59629.0,0.63229]
[1726249074463,0.13302494,59639.0,59638.0,0.083818]
[1726249074674,0.083811,59643.0,59639.0,0.083816]
[1726249074861,0.083811,59643.0,59641.0,0.04989852]
[1726249074862,0.083812,59642.0,59641.0,0.04989852]
[1726249075268,0.083811,59643.0,59641.0,0.083813]
[1726249075457,1.19128,59653.0,59646.0,0.083806]
[1726249075664,0.0838,59651.0,59642.0,0.3608]
[1726249075966,0.0838,59651.0,59649.0,0.04989533]
[1726249076269,1.275077,59653.0,59650.0,0.04989533]
[1726249076465,0.09404931,59653.0,59651.0,0.04989533]
[1726249076767,0.083798,59652.0,59651.0,0.04989533]
[1726249077161,0.567596,59654.0,59651.0,0.04989533]
[1726249077465,0.142891,59657.0,59653.0,0.41069533]
[1726249077663,0.19,59659.0,59648.0,0.3608]
[1726249077664,0.083789,59659.0,59656.0,0.3608]
[1726249077870,0.083789,59659.0,59657.0,0.04991607]
[1726249078071,0.06845885,59660.0,59658.0,0.04991607]
[1726249078368,0.06845885,59660.0,59658.0,0.083789]
[1726249078965,0.06845885,59660.0,59659.0,0.0499227]
[1726249079269,1.55220001,59670.0,59662.0,0.083784]
[1726249079270,0.273778,59667.0,59662.0,0.083784]
[1726249079465,0.28404955,59667.0,59663.0,0.04991731]
[1726249079666,0.1794,59670.0,59666.0,0.3608]
[1726249079972,0.263173,59670.0,59666.0,0.04991731]
[1726249080164,0.083774,59669.0,59666.0,0.04991731]
[1726249080359,0.083774,59669.0,59667.0,0.04991731]
[1726249080866,0.003,59667.0,59665.0,0.083779]
[1726249081059,0.003,59667.0,59666.0,0.3608]
[1726249081370,0.003,59667.0,59666.0,0.445578]
[1726249081769,0.01,59670.0,59666.0,1.4646]
[1726249081969,0.12,59680.0,59675.0,0.083766]
[1726249081970,0.0611,59680.0,59675.0,0.083766]
[1726249082366,0.0039,59684.0,59683.0,0.083755]
[1726249082673,0.065,59692.0,59683.0,0.444554]
[1726249082972,0.0611,59692.0,59691.0,0.3608]
[1726249083667,0.2507,59694.0,59691.0,0.3608]
[1726249083874,0.004,59692.0,59691.0,0.3608]
[1726249084067,0.004,59692.0,59691.0,0.444543]
[1726249084474,0.004,59692.0,59691.0,0.445543]
[1726249084768,0.003,59692.0,59691.0,0.446543]
[1726249085076,0.003,59692.0,59691.0,0.45683854]
[1726249085769,0.0039,59700.0,59698.0,0.083732]
[1726249085962,0.19,59702.0,59699.0,0.3608]
[1726249086662,0.0039,59707.0,59700.0,0.19]
[1726249086861,1.00518,59710.0,59705.0,0.3608]
[1726249087071,1.0,59710.0,59705.0,0.805324]
[1726249087267,1.0,59710.0,59705.0,0.7216]
[1726249087774,1.0,59710.0,59709.0,0.083718]
[1726249089696,1.09336291,59710.0,59709.0,0.083718]
[1726249089874,1.002,59710.0,59709.0,0.083718]
[1726249090069,1.09435692,59710.0,59709.0,0.083718]
[1726249090266,1.09335692,59710.0,59709.0,0.084718]
[1726249090479,1.09435692,59710.0,59709.0,0.085718]
[1726249091374,1.24267141,59710.0,59709.0,0.085718]
[1726249091968,1.09435692,59710.0,59709.0,0.085718]
[1726249094481,1.09335692,59710.0,59709.0,0.084718]
[1726249094674,1.041985,59710.0,59709.0,0.169436]
[1726249094869,1.041985,59710.0,59709.0,0.168436]
[1726249095073,1.041985,59710.0,59709.0,1.354594]
[1726249095274,1.041985,59710.0,59709.0,1.415794]
[1726249095882,1.001,59710.0,59709.0,1.415794]
[1726249096380,1.001,59710.0,59709.0,1.414794]
[1726249096576,0.89214286,59710.0,59709.0,1.415794]
[1726249096780,0.74979163,59710.0,59709.0,1.415794]
[1726249097201,0.55759163,59710.0,59709.0,1.415794]
[1726249098283,0.35307767,59710.0,59709.0,1.415794]
[1726249099271,0.20027767,59710.0,59709.0,1.415794]
[1726249099472,0.0039,59716.0,59715.0,0.25113]
[1726249099780,1.25128,59720.0,59719.0,0.083704]
[1726249099979,1.25,59720.0,59719.0,0.273704]
[1726249101480,1.25,59720.0,59719.0,0.102704]
[1726249102386,1.25,59720.0,59719.0,0.283704]
[1726249102578,1.25,59720.0,59719.0,0.291704]
[1726249103778,1.25,59720.0,59719.0,0.290704]
[1726249104084,1.25,59720.0,59719.0,0.2997965]
[1726249104483,1.25,59720.0,59719.0,0.34968388]
[1726249104691,1.25,59720.0,59719.0,0.3017965]
[1726249104992,1.25,59720.0,59719.0,0.3855005]
[1726249105183,1.25,59720.0,59719.0,0.3765005]
[1726249105383,1.25,59720.0,59719.0,0.3855005]
[1726249105686,1.25,59720.0,59719.0,0.3017965]
[1726249106290,1.25,59720.0,59719.0,0.3855005]
[1726249106984,1.25,59720.0,59719.0,0.3017965]
[1726249107491,1.25,59720.0,59719.0,0.2987965]
[1726249107691,1.25,59720.0,59719.0,0.2957965]
[1726249108284,1.25,59720.0,59719.0,0.2987965]
[1726249110189,1.25,59720.0,59715.0,0.72244]
[1726249110391,0.19,59718.0,59715.0,0.7216]
[1726249110593,1.19,59717.0,59715.0,0.7216]
[1726249110979,0.50236,59716.0,59706.0,0.0039]
[1726249111187,0.50236,59716.0,59694.0,0.32584]
[1726249111188,0.083732,59700.0,59694.0,0.32584]
[1726249111386,0.3608,59704.0,59698.0,0.083733]
[1726249111586,0.5547,59715.0,59700.0,0.08373]
[1726249111792,0.3608,59709.0,59708.0,0.09915587]
[1726249111991,0.3608,59709.0,59708.0,0.27483949]
[1726249112384,0.3647,59715.0,59708.0,0.46483949]
[1726249112586,0.3608,59715.0,59709.0,0.27483949]
[1726249112786,0.3608,59715.0,59710.0,0.27483949]
[1726249113087,0.3608,59715.0,59711.0,0.27661495]
[1726249113291,0.3608,59715.0,59706.0,0.14430593]
[1726249113292,0.5508,59715.0,59712.0,0.27661495]
[1726249113493,0.5508,59715.0,59713.0,0.27661495]
[1726249113802,0.63451,59715.0,59714.0,0.27661495]
[1726249114203,0.5508,59715.0,59714.0,0.27661495]
[1726249114493,0.3608,59715.0,59714.0,0.27661495]
[1726249114982,0.3608,59715.0,59714.0,0.27507157]
[1726249115590,0.1203,59716.0,59714.0,0.46507157]
[1726249115789,0.1203,59716.0,59715.0,0.27507157]
[1726249115989,0.1203,59716.0,59715.0,0.56387265]
[1726249116192,0.1203,59716.0,59715.0,0.3913775]
[1726249116496,0.1203,59716.0,59715.0,0.44771348]
[1726249116693,0.07004953,59716.0,59715.0,0.44771348]
[1726249117699,0.07404953,59716.0,59715.0,0.44871348]
[1726249118096,0.004,59716.0,59715.0,0.54042348]
[1726249118397,1.25128,59720.0,59718.0,0.083705]
[1726249118593,1.25,59720.0,59719.0,0.74993654]
[1726249118792,1.25,59720.0,59719.0,0.71759983]
[1726249119400,1.25,59720.0,59719.0,0.44389583]
[1726249119595,1.20812991,59720.0,59719.0,0.52759983]
[1726249119896,1.20812991,59720.0,59719.0,0.273704]
[1726249120096,1.20422991,59720.0,59719.0,1.376064]
[1726249120499,1.20422991,59720.0,59719.0,1.459768]
[1726249120691,1.20422991,59720.0,59719.0,1.462768]
[1726249120897,1.20422991,59720.0,59719.0,1.464768]
[1726249121490,1.20422991,59720.0,59719.0,0.781064]
[1726249121892,1.20422991,59720.0,59719.0,0.785064]
[1726249122104,1.20422991,59720.0,59719.0,0.7949898]
[1726249122292,1.20422991,59720.0,59719.0,0.2926298]
[1726249123407,1.20422991,59720.0,59719.0,1.3919898]
[1726249123602,1.20422991,59720.0,59719.0,0.7989898]
[1726249123800,1.20422991,59720.0,59719.0,1.3989898]
[1726249124005,1.20422991,59720.0,59719.0,0.7989898]
[1726249124309,1.20422991,59720.0,59719.0,1.3989898]
[1726249124607,1.20422991,59720.0,59719.0,0.7929898]
[1726249124811,1.20422991,59720.0,59719.0,1.3989898]
[1726249125007,1.20422991,59720.0,59719.0,0.7989898]
[1726249125206,1.20422991,59720.0,59719.0,1.3989898]
[1726249125802,1.20422991,59720.0,59719.0,1.4826938]
[1726249126301,1.20422991,59720.0,59719.0,0.1066298]
[1726249126703,1.08700267,59720.0,59719.0,0.37554789]
[1726249127296,1.08700267,59720.0,59719.0,0.36854789]
[1726249127500,1.08700267,59720.0,59719.0,0.37554789]
[1726249130306,1.08700267,59720.0,59719.0,0.22936557]
[1726249131216,1.08700267,59720.0,59719.0,0.22563586]
[1726249132109,1.08700267,59720.0,59719.0,0.21963586]
[1726249132312,1.08700267,59720.0,59719.0,0.72799586]
[1726249132801,1.08700267,59720.0,59719.0,0.80469986]
[1726249133001,1.08700267,59720.0,59719.0,1.55420654]
[1726249133205,1.08700267,59720.0,59719.0,1.63791054]
[1726249134608,1.08700267,59720.0,59719.0,1.49640386]
[1726249134916,1.00327902,59720.0,59719.0,1.91818523]
[1726249135108,1.00327902,59720.0,59719.0,1.23448123]
[1726249135304,1.00327902,59720.0,59719.0,1.15393354]
[1726249135511,1.00327902,59720.0,59719.0,1.63787247]
[1726249135809,1.25,59740.0,59737.0,0.083679]
[1726249136008,1.25088,59740.0,59737.0,0.710346]
[1726249136200,1.25088,59740.0,59737.0,0.75577081]
[1726249136609,1.25088,59740.0,59737.0,0.77127151]
[1726249136802,1.75232,59740.0,59738.0,0.12129181]
[1726249136999,1.75232,59740.0,59739.0,0.20496781]
[1726249138509,1.75232,59740.0,59739.0,0.28754511]
[1726249138710,1.75232,59740.0,59739.0,0.20496781]
[1726249138912,1.75332,59740.0,59739.0,0.20496781]
[1726249139322,1.75332,59740.0,59739.0,0.083676]
[1726249140921,2.11412,59740.0,59737.0,0.01103993]
[1726249141117,0.50232,59738.0,59737.0,0.07621477]
[1726249141322,0.50232,59738.0,59737.0,0.28387893]
[1726249142420,0.50332,59738.0,59737.0,0.28387893]
[1726249142718,0.001,59738.0,59737.0,0.28387893]
[1726249143811,0.001,59738.0,59737.0,0.29687893]
[1726249144420,0.50332,59738.0,59737.0,0.29687893]
[1726249144623,0.86312,59738.0,59737.0,0.30787893]
[1726249145511,0.86312,59738.0,59737.0,0.30887893]
[1726249146118,0.86312,59738.0,59737.0,0.292679]
[1726249146325,0.86312,59738.0,59737.0,0.288679]
[1726249147520,0.50232,59738.0,59737.0,0.288679]
[1726249147925,0.50232,59738.0,59737.0,0.372358]
[1726249148120,1.25096,59740.0,59737.0,0.372358]
[1726249148121,1.25096,59740.0,59739.0,0.167352]
[1726249148455,1.75232,59740.0,59739.0,0.083676]
[1726249148619,1.75232,59740.0,59739.0,0.167352]
[1726249149323,1.75232,59740.0,59739.0,0.251028]
[1726249149324,0.81,59740.0,59739.0,0.251028]
[1726249149523,0.81,59740.0,59739.0,0.257028]
[1726249149720,0.75978322,59740.0,59739.0,0.37731046]
[1726249149924,0.67342722,59740.0,59739.0,1.12053979]
[1726249150227,0.61484621,59740.0,59739.0,0.52053979]
[1726249150429,0.61484621,59740.0,59739.0,0.35318779]
[1726249150625,1.11716621,59740.0,59739.0,0.20995846]
[1726249150927,1.11716621,59740.0,59739.0,0.29252882]
[1726249151119,1.11716621,59740.0,59739.0,0.30152882]
[1726249151523,1.11716621,59740.0,59739.0,0.29052882]
[1726249151722,1.11716621,59740.0,59739.0,0.29252882]
[1726249152131,1.11716621,59740.0,59739.0,0.28992114]
[1726249152322,1.11716621,59740.0,59739.0,0.18124636]
[1726249152828,1.11716621,59740.0,59739.0,0.30891911]
[1726249153622,1.11716621,59740.0,59739.0,0.30091911]
[1726249153828,1.11716621,59740.0,59739.0,0.015]
[1726249154126,1.11716621,59740.0,59739.0,0.08107658]
[1726249154328,0.61484621,59740.0,59739.0,0.16475258]
[1726249154520,0.61484621,59740.0,59739.0,0.087676]
[1726249154725,0.61484621,59740.0,59739.0,0.098676]
[1726249155132,0.61484621,59740.0,59739.0,0.095676]
[1726249155333,0.61484621,59740.0,59739.0,0.103676]
[1726249155826,0.61484621,59740.0,59739.0,0.106676]
[1726249156030,1.11716621,59740.0,59739.0,0.094676]
[1726249156327,1.11716621,59740.0,59739.0,0.106676]
[1726249156724,1.05857358,59740.0,59739.0,0.106676]
[1726249158032,1.05857358,59740.0,59739.0,0.023]
[1726249158439,1.05857358,59740.0,59736.0,0.33355674]
[1726249158735,0.50232,59737.0,59735.0,0.04957911]